bitfinex/quotes_ETHUSD_20241204
["timestamp","ask_amount","ask_price","bid_price","bid_amount"]
[1733338967336,1.599,3825.8,3825.0,0.52262467]
[1733338968030,1.599,3825.8,3824.3,1.5417]
[1733338968031,2.0527,3825.7,3824.3,1.5417]
[1733338968193,2.0527,3825.7,3824.6,0.530205]
[1733338968392,4.66661,3825.7,3824.6,0.530205]
[1733338968993,4.66661,3825.7,3824.6,3.144845]
[1733338969492,1.5885,3825.4,3823.9,1.5935]
[1733338969697,1.5885,3825.2,3823.9,1.5935]
[1733338969892,8.79,3825.0,3824.2,3.14135325]
[1733338970135,0.55,3824.9,3824.6,2.61463]
[1733338970318,0.55,3824.9,3824.4,2.61472]
[1733338970629,0.55,3824.9,3824.2,0.52649325]
[1733338970991,0.55,3824.9,3824.2,3.14139325]
[1733338971827,0.55,3824.9,3824.2,0.52649325]
[1733338972404,0.55,3824.9,3824.3,2.61485]
[1733338973303,0.55,3824.9,3824.2,0.52649325]
[1733338973843,9.34,3824.9,3824.2,0.52649325]
[1733338974397,9.34,3824.9,3824.2,3.14139325]
[1733338975205,9.34,3824.9,3824.2,0.52649325]
[1733338975635,8.79,3824.9,3824.4,2.61476]
[1733338975931,8.79,3824.9,3824.2,0.73849258]
[1733338976138,8.79,3824.9,3824.6,2.61459]
[1733338976297,1.5885,3825.2,3824.2,0.73849258]
[1733338976498,1.6641,3825.5,3824.9,2.61444]
[1733338976795,1.6641,3825.5,3825.0,2.61436]
[1733338976998,1.6641,3825.5,3825.4,2.6141]
[1733338977236,8.79,3825.6,3825.4,2.6141]
[1733338977593,1.6165,3825.9,3825.3,2.61417]
[1733338977800,1.6165,3825.9,3825.0,0.261436]
[1733338977993,1.6165,3825.9,3825.2,3.13324647]
[1733338978433,1.6165,3825.9,3825.3,2.61417]
[1733338980323,1.6165,3825.9,3825.3,2.95363425]
[1733338981136,8.79,3826.3,3825.3,0.33946425]
[1733338981340,1.5744,3826.2,3825.8,2.61383]
[1733338981641,2.61247,3827.8,3825.0,0.261436]
[1733338981642,1.5689,3826.6,3825.4,1.6455]
[1733338981834,10.3589,3826.9,3826.3,2.61348]
[1733338981997,10.3589,3826.9,3826.0,0.52114147]
[1733338982994,10.3589,3826.9,3826.1,2.61356]
[1733338983200,10.3589,3826.9,3826.1,2.92703015]
[1733338983407,10.3589,3826.9,3826.1,0.31347015]
[1733338983614,10.3589,3826.9,3826.0,3.13477147]
[1733338983811,10.3589,3826.9,3826.0,0.52114147]
[1733338984037,1.5689,3826.9,3826.1,2.61362]
[1733338984345,1.3801,3826.4,3825.0,1.744536]
[1733338984504,1.3801,3826.4,3825.8,0.51413786]
[1733338984701,1.3801,3826.4,3825.0,1.744536]
[1733338984927,3.99357,3826.4,3825.1,0.1744536]
[1733338985246,1.3801,3826.4,3825.5,0.51669888]
[1733338988042,4.04345,3826.2,3825.5,0.51669888]
[1733338988224,1.4299,3826.2,3825.5,0.51669888]
[1733338988604,2.6137,3826.0,3825.5,0.51669888]
[1733338989441,10.2464,3825.8,3824.4,2.61474]
[1733338989598,1.4564,3825.7,3824.2,1.69099933]
[1733338989810,1.4564,3825.7,3825.1,3.14219946]
[1733338990214,1.4564,3825.7,3825.2,2.61423]
[1733338990449,1.4564,3825.7,3825.1,0.52791946]
[1733338990763,10.1816,3826.1,3825.5,2.58912]
[1733338991068,10.1816,3826.1,3825.1,3.14218946]
[1733338991069,1.3916,3826.1,3825.1,0.52791946]
[1733338991355,1.3916,3826.1,3825.2,0.19648195]
[1733338991512,1.3916,3826.1,3825.1,3.14219946]
[1733338991717,1.3916,3826.1,3825.1,0.52791946]
[1733338991718,2.61382,3825.9,3825.1,0.52791946]
[1733338992241,1.3916,3826.1,3825.1,0.52791946]
[1733338992435,1.4038,3825.8,3825.1,0.52791946]
[1733338993755,8.79,3826.6,3825.1,0.84214741]
[1733338993959,10.2626,3826.5,3825.3,1.3748]
[1733338994119,10.2626,3826.5,3826.0,2.61363]
[1733338994319,10.2626,3826.5,3825.3,1.3748]
[1733338994320,1.3553,3827.3,3825.6,0.02613348]
[1733338994664,12.75811,3827.3,3826.2,2.61355]
[1733338994862,8.79,3827.2,3826.2,2.61355]
[1733338995372,10.065811,3827.2,3826.2,2.61255]
[1733338995521,1.3741,3827.1,3825.2,1.6778]
[1733338995725,1.3741,3826.9,3825.2,1.6778]
[1733338995918,1.3741,3826.9,3826.1,0.51457868]
[1733338996116,2.6135,3826.3,3825.3,2.6141]
[1733338996416,2.61314,3826.8,3825.2,0.2611]
[1733338996417,1.4836,3826.1,3825.2,0.2611]
[1733338996622,10.2736,3826.1,3825.4,0.5208502]
[1733338996853,12.88723,3826.1,3825.4,0.5208502]
[1733338997064,10.2736,3826.1,3825.4,0.5208502]
[1733338997246,10.2736,3826.1,3824.9,1.4721]
[1733338997540,10.2736,3826.1,3824.9,1.61931]
[1733338997541,10.73248293,3826.1,3824.9,1.61931]
[1733338997719,4.049,3826.0,3825.2,0.52858508]
[1733338997915,1.4353,3826.0,3825.2,0.52858508]
[1733338998139,4.04899,3826.0,3825.2,0.52858508]
[1733338998664,1.4353,3826.0,3825.2,0.52858508]
[1733338999376,1.4353,3826.0,3825.2,3.14280508]
[1733338999665,1.4353,3826.0,3825.2,0.84286559]
[1733338999818,8.79,3826.1,3825.2,0.84286559]
[1733339000020,1.4594,3826.0,3825.2,3.14276508]
[1733339000255,1.4594,3826.0,3825.2,1.96128508]
[1733339000460,1.4594,3826.6,3825.3,2.61417]
[1733339000664,1.4594,3826.6,3825.9,2.61371]
[1733339000820,1.4594,3826.6,3825.2,1.4327]
[1733339001205,1.4594,3827.0,3826.3,0.50974724]
[1733339001765,8.79,3827.3,3826.4,1.4808]
[1733339002192,2.98410156,3828.9,3827.0,2.61299]
[1733339002193,4.02028,3828.1,3827.0,2.61299]
[1733339002404,1.408,3827.9,3826.3,0.50974724]
[1733339002703,1.408,3827.9,3826.9,2.61302]
[1733339002904,1.408,3827.9,3826.7,2.61319]
[1733339002905,1.281033,3827.8,3826.7,2.61319]
[1733339003121,1.281033,3827.8,3826.4,1.4808]
[1733339003706,1.408,3827.9,3826.4,1.4808]
[1733339003892,1.408,3827.9,3827.2,2.61287]
[1733339004206,1.408,3827.9,3827.3,0.53217278]
[1733339004207,2.61246,3827.8,3827.3,0.53217278]
[1733339004408,1.408,3827.9,3826.5,2.61334]
[1733339004607,11.40226,3828.1,3826.1,0.02612664]
[1733339004608,8.79,3827.8,3826.1,0.02612664]
[1733339004768,1.3414,3827.2,3826.0,2.61366]
[1733339005175,3.95427,3827.2,3826.0,2.61366]
[1733339005401,2.61303,3827.0,3825.8,2.61381]
[1733339005604,2.61311,3826.9,3826.5,0.52297757]
[1733339005778,2.61294,3827.1,3826.5,0.52297757]
[1733339005986,0.395434,3827.0,3826.5,0.52297757]
[1733339006513,3.008474,3827.0,3825.6,2.61396]
[1733339006828,3.008474,3827.0,3825.9,2.61371]
[1733339007120,3.008474,3827.0,3826.4,0.5336879]
[1733339007476,3.008474,3827.0,3825.5,2.61399]
[1733339007477,1.4192,3826.9,3825.5,0.02613144]
[1733339007775,1.4192,3826.9,3826.2,2.61354]
[1733339008780,1.4192,3826.9,3826.1,0.51101335]
[1733339008982,1.4192,3826.9,3826.1,3.12462335]
[1733339009208,8.79,3827.1,3826.3,2.61342]
[1733339009392,8.79,3827.1,3826.2,4.02482]
[1733339009601,8.79,3827.1,3826.3,0.45619628]
[1733339010017,8.79,3827.1,3826.5,2.61335]
[1733339010235,1.4494,3827.3,3826.3,0.45619628]
[1733339010517,1.4679,3827.7,3826.4,2.61342]
[1733339010726,1.4679,3827.7,3826.7,0.52057428]
[1733339010874,1.4679,3827.7,3826.9,2.61307]
[1733339011072,1.4679,3827.7,3826.7,0.83396671]
[1733339011273,1.4679,3827.7,3826.7,0.52057428]
[1733339012001,1.4679,3827.7,3826.8,2.61311]
[1733339012197,1.4679,3827.7,3826.9,2.61307]
[1733339012408,1.4679,3827.7,3826.7,0.52057428]
[1733339012920,1.4679,3827.7,3827.0,2.61298]
[1733339013126,1.4679,3827.7,3826.9,2.61305]
[1733339013508,2.754923,3827.7,3827.3,0.52888018]
[1733339013694,2.754923,3827.7,3826.2,1.4113]
[1733339013695,2.754923,3827.7,3826.4,2.6134]
[1733339014096,2.754923,3827.7,3826.6,2.61328]
[1733339014432,2.6126,3827.6,3826.4,2.6134]
[1733339014590,2.754923,3827.7,3826.4,2.6134]
[1733339014792,0.70902093,3827.6,3826.4,2.6134]
[1733339014985,2.61267,3827.5,3826.8,0.50970423]
[1733339015233,0.70902093,3827.6,3826.8,0.50970423]
[1733339015234,2.61279,3827.4,3826.8,0.50970423]
[1733339015431,1.3824,3827.3,3826.1,0.2611]
[1733339015599,1.3824,3827.3,3826.4,0.53154496]
[1733339015928,1.3824,3827.3,3826.5,2.61335]
[1733339016088,1.3824,3827.3,3826.4,1.92634496]
[1733339016089,1.3824,3827.6,3826.4,1.92634496]
[1733339016290,1.3824,3827.6,3826.5,2.61335]
[1733339016519,1.3824,3827.6,3826.9,2.61307]
[1733339016928,1.3824,3827.6,3826.7,2.6132]
[1733339017283,1.3824,3827.6,3827.2,0.53379174]
[1733339017488,2.66088,3827.6,3827.2,0.53379174]
[1733339017733,1.3824,3827.6,3827.2,0.53379174]
[1733339023197,1.4182,3828.1,3827.2,3.14662174]
[1733339023399,1.4182,3828.1,3827.3,1.3261]
[1733339023664,1.4182,3828.9,3827.4,0.02612095]
[1733339023814,1.4182,3828.9,3827.7,2.61248]
[1733339024017,8.93182,3828.8,3827.4,2.61273]
[1733339024216,8.79,3828.8,3827.9,2.61239]
[1733339024809,1.4182,3828.4,3827.3,1.3261]
[1733339025041,1.4182,3828.4,3827.7,0.50999537]
[1733339025342,1.4182,3828.4,3827.8,2.61245]
[1733339025506,1.4182,3828.4,3827.8,3.05730454]
[1733339025930,1.4182,3828.4,3827.8,0.44485454]
[1733339026101,1.4182,3828.4,3827.7,1.83609537]
[1733339027008,1.4182,3828.4,3827.7,0.50999537]
[1733339028851,8.79,3828.8,3827.7,0.50999537]
[1733339028852,1.3273,3828.8,3827.8,2.61246]
[1733339029006,1.5124,3828.3,3826.2,4.50607997]
[1733339029206,1.4124,3826.9,3825.7,6.77082491]
[1733339029517,1.4124,3826.9,3826.1,2.61362]
[1733339029719,1.4124,3826.9,3825.8,2.61381]
[1733339030029,1.4124,3826.9,3825.7,1.3673]
[1733339030030,4.02548,3826.9,3825.7,1.3673]
[1733339030232,4.02548,3826.9,3825.7,1.765425]
[1733339030233,2.61322,3826.7,3825.7,1.765425]
[1733339030616,1.4124,3826.9,3825.7,1.765425]
[1733339030617,4.02548,3826.9,3825.7,0.398125]
[1733339030850,4.02548,3826.9,3825.3,3.96862]
[1733339030851,0.02611773,3826.8,3826.0,0.53129333]
[1733339031025,1.4124,3826.9,3826.0,0.53129333]
[1733339031026,2.61324,3826.7,3826.0,0.53129333]
[1733339031201,2.61328,3826.6,3825.4,2.61409]
[1733339031405,2.61328,3826.6,3825.8,0.52779351]
[1733339031604,2.61336,3826.5,3825.8,0.52779351]
[1733339032007,2.61322,3826.7,3825.8,0.52779351]
[1733339032207,1.4124,3826.9,3825.8,0.52779351]
[1733339032411,2.61321,3826.7,3825.8,0.52779351]
[1733339033311,0.1699695,3826.8,3825.8,0.52779351]
[1733339033519,2.61371,3826.0,3824.4,1.3329]
[1733339033731,3.92337,3825.9,3824.4,1.35903722]
[1733339033934,3.92337,3825.9,3824.7,2.61457]
[1733339034113,3.92337,3825.9,3824.8,0.261457]
[1733339034535,1.3096,3825.9,3824.8,2.875927]
[1733339034744,1.3096,3825.9,3825.3,0.5142088]
[1733339035840,8.79,3826.3,3825.3,1.9113088]
[1733339036023,8.79,3826.3,3826.0,2.61369]
[1733339036350,1.3954,3826.9,3826.1,1.3971]
[1733339036647,1.3801,3827.8,3826.1,1.3971]
[1733339036857,0.1,3828.9,3826.3,2.61342]
[1733339036858,1.3801,3827.7,3826.3,2.61342]
[1733339037513,1.3801,3827.7,3826.4,2.6134]
[1733339038015,2.6126,3827.6,3826.8,0.52230946]
[1733339038208,0.39927,3827.5,3826.8,0.52230946]
[1733339040250,8.79,3827.6,3826.8,0.52230946]
[1733339040424,8.79,3827.6,3826.9,2.61308]
[1733339040615,8.79,3827.6,3826.8,0.52230946]
[1733339040616,8.79,3827.6,3826.8,1.93010946]
[1733339040948,8.79,3827.6,3827.1,2.61289]
[1733339041522,8.79,3827.6,3826.8,1.93010946]
[1733339041523,8.79,3827.6,3827.3,2.61279]
[1733339041711,1.3969,3828.5,3827.3,0.261279]
[1733339042046,10.1869,3828.5,3827.4,2.61272]
[1733339042213,10.1869,3828.5,3826.8,1.4078]
[1733339042424,10.1869,3828.5,3827.5,0.53261161]
[1733339042615,12.7989,3828.5,3827.5,0.53261161]
[1733339042828,10.1869,3828.5,3827.5,0.53261161]
[1733339043163,1.01869,3828.4,3827.5,0.53261161]
[1733339043862,3.63076,3828.4,3827.5,0.53261161]
[1733339044156,3.63076,3828.4,3827.0,2.613]
[1733339044157,0.02611773,3828.3,3827.0,2.613]
[1733339044359,1.3806,3828.2,3827.0,2.613]
[1733339044651,1.3806,3828.2,3826.8,4.02094]
[1733339044652,2.61229,3828.1,3826.8,4.02094]
[1733339044859,0.5298875,3828.1,3827.2,0.53229813]
[1733339045079,0.02611773,3828.1,3827.2,0.53229813]
[1733339045241,2.61246,3827.9,3827.2,0.53229813]
[1733339045629,0.02611773,3827.8,3826.5,1.3297]
[1733339045858,1.3008,3827.9,3826.5,1.3297]
[1733339046072,1.3008,3827.9,3827.4,2.61272]
[1733339046298,8.79,3828.1,3827.3,1.3723]
[1733339046585,8.79,3828.1,3827.0,0.51333484]
[1733339046792,2.61233,3828.0,3827.0,0.51333484]
[1733339047076,1.2944,3827.8,3827.0,0.51333484]
[1733339047951,1.32051773,3827.8,3827.0,0.51333484]
[1733339048150,1.32051773,3827.8,3826.1,1.3389]
[1733339048151,2.61286,3827.3,3826.1,1.3389]
[1733339048338,1.4227,3827.4,3826.2,2.7735669]
[1733339048538,1.4227,3827.4,3826.2,0.1600269]
[1733339048738,1.4227,3827.7,3826.9,1.3389]
[1733339048935,4.03465,3828.6,3827.4,2.61267]
[1733339049234,1.282465,3828.5,3827.5,2.63872278]
[1733339049439,1.282465,3828.5,3827.0,0.02612316]
[1733339049678,10.2127,3828.6,3827.0,0.02612316]
[1733339049880,2.61207,3828.4,3827.3,2.6128]
[1733339050042,1.3051,3828.3,3827.8,0.53339392]
[1733339050379,1.3051,3828.3,3826.9,1.3389]
[1733339050537,1.3051,3828.3,3827.6,0.51126821]
[1733339050875,3.91723,3828.3,3827.6,0.51126821]
[1733339051369,1.3051,3828.3,3827.6,0.51126821]
[1733339051885,2.6124,3827.9,3827.6,0.51126821]
[1733339052670,2.61227,3828.1,3827.6,0.51126821]
[1733339053233,1.3051,3828.3,3827.6,0.51126821]
[1733339054043,3.91728,3828.3,3827.6,0.51126821]
[1733339054440,1.3051,3828.3,3827.6,0.51126821]
[1733339054657,2.61226,3828.1,3827.6,0.51126821]
[1733339055038,2.61233,3828.0,3826.9,1.3389]
[1733339055238,3.925,3828.2,3827.1,2.61293]
[1733339055433,3.88376,3828.1,3826.9,3.95196]
[1733339055741,2.61233,3828.0,3826.9,3.95196]
[1733339055955,1.2715,3828.1,3827.3,0.51210395]
[1733339056195,2.61282,3827.3,3826.6,1.3025]
[1733339056477,2.874142,3827.3,3826.7,0.53090826]
[1733339056769,0.261282,3827.3,3826.7,0.53090826]
[1733339056975,2.874122,3827.3,3826.7,0.53090826]
[1733339057177,0.261282,3827.3,3826.7,0.53090826]
[1733339059801,0.261282,3827.3,3826.2,1.3025]
[1733339060104,2.61308,3826.9,3825.9,1.2988]
[1733339060288,1.40861773,3827.2,3826.5,0.51090638]
[1733339060490,0.46326193,3827.1,3826.5,0.51090638]
[1733339060701,2.61335,3826.5,3825.9,1.2988]
[1733339060868,2.61343,3826.4,3825.5,1.5599]
[1733339061064,2.6135,3826.3,3826.0,0.53054859]
[1733339061869,3.97387,3826.5,3826.0,0.53054859]
[1733339062071,2.632,3826.5,3825.5,1.2988]
[1733339062300,2.6135,3826.3,3825.5,1.2988]
[1733339062974,8.79,3826.3,3824.9,4.00058]
[1733339063175,2.6137,3826.0,3824.9,1.3862]
[1733339063370,1.3613,3825.8,3824.9,1.3862]
[1733339063604,2.64003773,3825.7,3824.9,1.3862]
[1733339063817,2.64003773,3825.7,3825.3,0.52445533]
[1733339063818,2.61403,3825.6,3825.3,0.52445533]
[1733339063977,4.11127,3825.8,3824.6,2.61462]
[1733339064178,4.11127,3825.8,3824.5,3.91452]
[1733339064415,2.64001773,3825.7,3824.5,3.91452]
[1733339064715,11.43001773,3825.7,3824.6,0.391452]
[1733339064890,11.4039,3825.7,3824.6,0.391452]
[1733339065087,8.79,3825.7,3824.6,0.391452]
[1733339065289,11.40391,3825.7,3825.2,0.52785172]
[1733339065499,8.79,3825.7,3825.2,0.52785172]
[1733339066219,11.4039,3825.7,3825.2,0.52785172]
[1733339066524,1.2947,3826.5,3825.3,1.2929]
[1733339066817,2.61342,3826.4,3825.3,1.2929]
[1733339067111,2.6135,3826.3,3825.4,0.44349717]
[1733339067311,2.61364,3826.1,3825.3,1.2929]
[1733339068013,1.3026,3825.9,3825.2,0.52785172]
[1733339068219,1.3778,3825.2,3824.5,1.3153]
[1733339068879,2.6144,3825.0,3824.1,1.3064]
[1733339069413,2.6144,3825.0,3823.8,3.98709]
[1733339069618,2.6144,3825.0,3823.8,4.385799]
[1733339069777,2.64058773,3824.9,3824.4,0.52811298]
[1733339070187,2.61454,3824.8,3823.8,1.3719]
[1733339070413,2.64071773,3824.7,3823.8,1.3719]
[1733339070715,11.40423,3825.3,3823.8,1.3719]
[1733339070716,3.97595,3824.6,3823.8,1.3719]
[1733339070901,1.3613,3824.6,3823.8,1.3719]
[1733339071735,3.98276773,3824.9,3823.8,3.98708]
[1733339071895,0.02611773,3824.8,3823.8,3.98708]
[1733339072420,3.95665,3824.9,3823.8,3.98708]
[1733339072421,1.3422,3824.9,3824.2,0.51299072]
[1733339072822,1.4209,3825.5,3824.3,1.36014727]
[1733339073008,0.02611773,3825.4,3824.4,2.61478]
[1733339073207,0.02611773,3825.4,3824.3,1.334]
[1733339073208,1.0498195,3825.4,3824.3,1.334]
[1733339073433,3.6639195,3825.4,3824.3,1.334]
[1733339073604,1.4209,3825.5,3824.3,1.334]
[1733339073804,8.79,3825.7,3824.9,2.61443]
[1733339074000,8.79,3825.7,3825.0,1.365]
[1733339075941,2.64007773,3825.6,3824.4,1.3778]
[1733339076104,8.79,3825.7,3824.4,0.53136206]
[1733339076105,2.54440777,3825.5,3824.4,0.53136206]
[1733339076452,2.61431,3825.1,3824.4,0.53136206]
[1733339076632,0.02611773,3825.0,3824.4,0.53136206]
[1733339077300,2.64049773,3825.0,3824.4,0.53136206]
[1733339077741,0.02611773,3825.0,3824.0,1.3778]
[1733339077938,2.61431,3825.1,3824.0,4.13061]
[1733339078116,0.02611773,3825.0,3824.0,1.3778]
[1733339078311,2.54440777,3825.5,3824.0,1.3778]
[1733339078312,2.61435,3825.1,3824.0,1.3778]
[1733339078519,2.61445,3824.9,3824.3,0.5349693]
[1733339078717,0.02611773,3824.8,3824.3,0.5349693]
[1733339078943,8.79,3825.0,3824.3,0.5349693]
[1733339079436,8.79,3825.0,3824.3,0.98775123]
[1733339079647,8.79,3825.0,3824.3,0.5349693]
[1733339082039,2.61432,3825.1,3824.3,0.5349693]
[1733339082040,0.02611773,3824.9,3824.3,0.5349693]
[1733339082342,0.02611773,3825.1,3824.3,0.5349693]
[1733339082955,0.02611773,3825.2,3824.3,0.5349693]
[1733339083114,8.79,3825.3,3825.2,2.61424]
[1733339083315,8.79,3825.3,3825.2,1.560724]
[1733339083536,8.79,3825.3,3825.2,1.2993]
[1733339084814,11.40364,3826.1,3825.2,1.2993]
[1733339085014,1.2877,3826.2,3825.2,1.2993]
[1733339085240,10.0777,3826.2,3825.2,3.91353]
[1733339085446,0.02611773,3826.1,3825.2,1.2993]
[1733339085651,10.0777,3826.2,3825.2,1.74340421]
[1733339085951,10.0777,3826.2,3825.4,2.61404]
[1733339086448,0.02611773,3826.1,3825.2,1.2993]
[1733339086749,2.63973773,3826.1,3825.2,1.2993]
[1733339086924,2.6137,3826.0,3825.2,1.2993]
[1733339087252,0.02611773,3825.9,3825.2,1.2993]
[1733339087457,0.02611773,3826.1,3825.2,1.2993]
[1733339087670,1.2978565,3826.1,3825.2,1.2993]
[1733339088466,3.99499,3826.0,3824.8,1.3821]
[1733339088677,3.99499,3826.0,3824.2,2.61488]
[1733339088678,2.61404,3825.5,3824.2,2.61488]
[1733339088873,2.61404,3825.5,3824.7,0.53213987]
[1733339089055,2.6141,3825.4,3824.7,0.53213987]
[1733339089371,2.6141,3825.4,3824.3,2.61483]
[1733339089372,2.61424,3825.2,3824.6,0.5225519]
[1733339089574,2.61431,3825.1,3824.6,0.5225519]
[1733339090076,11.43036773,3825.2,3824.5,0.53243208]
[1733339090237,11.40425,3825.2,3824.5,0.53243208]
[1733339090566,8.79,3825.2,3824.5,0.53243208]
[1733339090983,1.3957,3826.1,3824.7,2.61458]
[1733339091316,1.3957,3826.1,3825.5,1.3684]
[1733339091426,1.3317,3826.4,3825.5,1.3684]
[1733339091626,1.3317,3826.4,3825.5,3.9824]
[1733339091831,1.3317,3826.7,3825.5,1.3684]
[1733339092075,1.3317,3826.7,3825.9,2.61375]
[1733339092374,2.61301,3827.0,3826.0,2.61367]
[1733339092375,8.79,3826.9,3826.0,2.61367]
[1733339092677,10.1483,3827.0,3825.9,2.61376]
[1733339092837,8.79,3826.9,3826.0,2.61366]
[1733339093248,10.1483,3827.0,3826.0,2.61366]
[1733339093570,10.066126,3826.9,3826.4,0.53024657]
[1733339093956,0.02611773,3826.8,3826.4,0.53024657]
[1733339094144,0.02611773,3826.8,3825.8,2.61381]
[1733339094668,0.02611773,3826.8,3825.5,1.50524]
[1733339094669,0.02611773,3826.8,3825.9,2.61375]
[1733339095192,0.02611773,3826.8,3826.3,0.51011791]
[1733339095494,0.74603566,3826.8,3826.3,0.51011791]
[1733339097254,0.74603566,3826.8,3825.8,2.6138]
[1733339097255,0.74603566,3826.8,3825.5,1.3684]
[1733339097476,3.93827,3826.5,3825.5,1.3684]
[1733339097684,1.3249,3826.5,3825.6,2.61394]
[1733339098279,0.02611773,3826.4,3825.6,2.61394]
[1733339099366,0.02611773,3826.4,3825.5,1.88552373]
[1733339099566,0.02611773,3826.4,3825.5,4.49955373]
[1733339100273,0.02611773,3826.4,3825.5,1.88552373]
[1733339100274,3.9149745,3826.4,3825.5,1.88552373]
[1733339100587,8.79,3826.3,3825.5,2.61402]
[1733339101099,8.79,3826.3,3825.2,1.3355]
[1733339101402,8.79,3826.3,3824.8,2.61447]
[1733339101403,10.2078,3827.2,3825.7,1.3355]
[1733339101692,1.04689773,3827.1,3826.1,2.61358]
[1733339102054,0.9726,3827.0,3826.1,2.61358]
[1733339102254,0.02611773,3826.9,3826.1,2.61358]
[1733339102493,0.9726,3827.0,3826.2,0.53326015]
[1733339102702,0.9726,3827.0,3826.3,2.61344]
[1733339102908,0.9726,3827.0,3826.4,2.61341]
[1733339103206,0.9726,3827.0,3826.2,3.14681015]
[1733339103377,0.9726,3827.0,3826.3,2.61346]
[1733339104102,0.9726,3827.0,3826.2,0.53326015]
[1733339104266,0.9726,3827.0,3826.5,2.61334]
[1733339104471,0.9726,3827.0,3826.3,2.61348]
[1733339104679,0.02611773,3826.9,3826.2,0.53326015]
[1733339104885,1.94786393,3827.0,3825.7,1.3355]
[1733339105072,0.02611773,3826.9,3825.7,1.3355]
[1733339105508,0.02611773,3826.9,3825.8,0.52380018]
[1733339105912,8.79,3826.8,3825.8,0.52380018]
[1733339106084,2.01949773,3826.7,3825.8,0.52380018]
[1733339106603,2.01949773,3826.7,3825.4,1.0148]
[1733339106604,2.61342,3826.4,3825.4,1.0148]
[1733339106794,0.02611773,3826.3,3825.4,1.0148]
[1733339106968,0.9726,3826.2,3825.3,2.61415]
[1733339107473,0.9726,3826.2,3825.1,1.0148]
[1733339107474,0.9726,3826.2,3825.4,3.13699288]
[1733339108209,0.9726,3826.2,3825.7,2.61384]
[1733339108381,0.26759589,3827.6,3825.4,3.13694288]
[1733339108382,8.79,3827.5,3826.4,2.61342]
[1733339108711,9.7626,3827.4,3826.7,2.61316]
[1733339108916,0.97626,3827.3,3826.7,2.61316]
[1733339109206,0.97626,3827.3,3826.3,2.61349]
[1733339109379,0.9726,3828.1,3826.5,1.0698]
[1733339109586,2.63850773,3828.0,3826.8,0.53371027]
[1733339109785,2.63850773,3828.0,3827.0,2.61299]
[1733339110014,8.79,3827.9,3827.0,2.61299]
[1733339110506,8.79,3827.9,3826.8,0.53371027]
[1733339110813,8.79,3828.4,3826.9,1.0323]
[1733339111023,0.02611773,3828.3,3826.9,1.0323]
[1733339111193,2.61225,3828.2,3827.0,2.613]
[1733339111513,2.61242,3827.9,3826.8,0.53371027]
[1733339111673,0.02611773,3827.8,3826.9,2.61305]
[1733339111875,2.61261,3827.6,3826.2,2.61355]
[1733339112215,8.79,3827.5,3825.8,1.0388]
[1733339112420,0.02611773,3828.0,3826.6,2.61328]
[1733339112421,0.9726,3828.0,3826.6,2.61328]
[1733339112585,0.9726,3828.0,3826.4,0.53235157]
[1733339112586,8.79,3828.5,3828.1,2.61225]
[1733339112773,2.61115,3829.8,3827.8,1.0367]
[1733339112774,0.879,3828.4,3827.8,1.0367]
[1733339112987,0.9726,3829.0,3828.4,2.61205]
[1733339113213,0.9726,3829.0,3827.9,2.61239]
[1733339113214,0.9726,3829.0,3827.8,1.0367]
[1733339113416,0.9726,3829.0,3827.9,2.61239]
[1733339113719,0.9726,3829.0,3828.3,0.52748446]
[1733339114017,0.02611773,3828.9,3828.3,0.52748446]
[1733339114170,0.9726,3829.0,3828.3,0.52748446]
[1733339114596,0.9726,3829.0,3828.2,2.61217]
[1733339114808,0.02611773,3828.9,3828.0,2.61231]
[1733339115170,0.9226,3829.0,3828.2,0.53375408]
[1733339115995,8.79,3829.1,3828.3,0.02611952]
[1733339116208,8.79,3829.1,3828.2,0.53375408]
[1733339116209,2.61102,3830.0,3828.5,1.0073]
[1733339116412,2.61102,3830.0,3828.6,2.61192]
[1733339116597,0.79826513,3830.8,3828.5,1.0073]
[1733339116598,0.02611773,3829.9,3828.5,1.0073]
[1733339116786,2.61126,3829.6,3828.5,1.0073]
[1733339116988,0.02611773,3829.5,3828.5,3.61925]
[1733339117214,8.79,3829.9,3829.1,2.61154]
[1733339117414,8.79,3829.9,3828.8,2.61173]
[1733339117724,8.79,3830.4,3829.4,2.61136]
[1733339118024,0.9226,3830.3,3829.4,2.61136]
[1733339118195,0.9226,3830.3,3828.9,2.61171]
[1733339118381,0.97126,3830.2,3829.2,2.61149]
[1733339118815,0.97126,3830.2,3829.3,1.0945]
[1733339119511,0.02611773,3830.1,3829.3,1.0945]
[1733339120487,0.02611773,3830.1,3829.1,3.12201197]
[1733339120788,8.79,3830.4,3829.2,0.02611186]
[1733339120990,8.79,3830.6,3829.7,2.6111]
[1733339121363,8.79,3830.6,3829.3,1.0262]
[1733339121364,10.022299,3830.6,3829.8,2.61108]
[1733339121522,10.022299,3830.6,3829.3,3.63757]
[1733339121833,8.79,3830.6,3829.8,2.61108]
[1733339122124,0.9226,3830.7,3830.2,2.61082]
[1733339122422,8.79,3831.0,3830.2,2.61082]
[1733339122596,0.9226,3831.1,3830.2,2.61082]
[1733339122800,0.9226,3831.5,3830.3,2.61075]
[1733339123096,1.232247,3831.4,3830.2,2.61082]
[1733339123286,1.232247,3831.4,3830.1,1.0452]
[1733339123487,1.232247,3831.4,3830.5,0.5324109]
[1733339124129,1.232247,3831.4,3830.3,2.61073]
[1733339124422,1.232247,3831.4,3830.4,0.51465865]
[1733339124423,0.94871773,3831.3,3830.4,0.51465865]
[1733339124633,0.94871773,3831.3,3829.8,2.61107]
[1733339124634,9.55379693,3831.2,3829.8,2.61107]
[1733339124786,0.02611773,3831.1,3830.0,2.61095]
[1733339125603,0.02611773,3831.1,3829.4,1.0741]